fUST/lending_fUST_20250729
["ID","MTS","AMOUNT","RATE_DAILY","PERIOD"]
[375922585,1753786243754,-460.0,0.00019178,2]
[375922601,1753786243897,-460.0,0.00019178,2]
[375922604,1753786243910,-4089.71,0.00019178,2]
[375922606,1753786243920,-460.0,0.00019178,2]
[375922608,1753786243930,-460.0,0.00019178,2]
[375922610,1753786243940,-460.0,0.00019178,2]
[375922612,1753786243949,-460.0,0.00019178,2]
[375922614,1753786243958,-1608.13,0.00019178,2]
[375922616,1753786243968,-460.0,0.00019178,2]
[375922618,1753786243977,-460.0,0.00019178,2]
[375922620,1753786243987,-460.0,0.00019178,2]
[375922622,1753786243998,-460.0,0.00019178,2]
[375922624,1753786244007,-2885.28,0.00019178,2]
[375922626,1753786244016,-460.0,0.00019178,2]
[375922628,1753786244026,-460.0,0.00019178,2]
[375922630,1753786244035,-460.0,0.00019178,2]
[375922632,1753786244044,-1019.55,0.00019178,2]
[375922634,1753786244054,-460.0,0.00019178,2]
[375922635,1753786244063,-460.0,0.00019178,2]
[375922637,1753786244072,-460.0,0.00019178,2]
[375922639,1753786244082,-403.76008107,0.00019178,2]
[375922641,1753786244092,-460.0,0.00019178,2]
[375922644,1753786244103,-460.0,0.00019178,2]
[375922646,1753786244113,-460.0,0.00019178,2]
[375922647,1753786244126,-460.0,0.00019178,2]
[375922650,1753786244136,-1459.12,0.00019178,2]
[375922652,1753786244145,-460.0,0.00019178,2]
[375922654,1753786244155,-429.48253497,0.00019178,2]
[375922656,1753786244164,-4196.7,0.00019178,2]
[375922658,1753786244173,-1265.05,0.00019178,2]
[375922660,1753786244182,-794.22,0.00019178,2]
[375922662,1753786244191,-461.60941473,0.00019178,2]
[375922664,1753786244201,-273.53493485,0.00019178,2]
[375922666,1753786244210,-539.71,0.00019178,2]
[375922668,1753786244220,-539.71,0.00019178,2]
[375922670,1753786244229,-517.22,0.00019178,2]
[375922672,1753786244238,-11712.56,0.00019178,2]
[375922674,1753786244247,-539.72,0.00019178,2]
[375922676,1753786244257,-460.0,0.00019178,2]
[375922678,1753786244266,-517.22,0.00019178,2]
[375922680,1753786244276,-306.41489574,0.00019178,2]
[375922682,1753786244285,-517.22,0.00019178,2]
[375922684,1753786244294,-517.22,0.00019178,2]
[375922686,1753786244303,-341.76280935,0.00019178,2]
[375922688,1753786244313,-460.0,0.00019178,2]
[375922690,1753786244322,-517.22,0.00019178,2]
[375922692,1753786244331,-517.22,0.00019178,2]
[375922694,1753786244340,-487.56,0.00019178,2]
[375922696,1753786244349,-460.0,0.00019178,2]
[375922698,1753786244359,-517.22,0.00019178,2]
[375922700,1753786244368,-517.22,0.00019178,2]
[375922702,1753786244378,-517.22,0.00019178,2]
[375922704,1753786244387,-517.22,0.00019178,2]
[375922706,1753786244396,-517.22,0.00019178,2]
[375922708,1753786244406,-517.22,0.00019178,2]
[375922709,1753786244415,-460.0,0.00019178,2]
[375922711,1753786244425,-517.22,0.00019178,2]
[375922713,1753786244434,-460.0,0.00019178,2]
[375922715,1753786244443,-517.22,0.00019178,2]
[375922717,1753786244453,-517.22,0.00019178,2]
[375922719,1753786244462,-517.22,0.00019178,2]
[375922721,1753786244476,-517.22,0.00019178,2]
[375922723,1753786244486,-517.22,0.00019178,2]
[375922725,1753786244495,-517.22,0.00019178,2]
[375922727,1753786244504,-517.22,0.00019178,2]
[375922729,1753786244514,-517.22,0.00019178,2]
[375922731,1753786244524,-784.83,0.00019178,2]
[375922733,1753786244534,-725.41,0.00019178,2]
[375922735,1753786244545,-460.0,0.00019178,2]
[375922737,1753786244555,-460.0,0.00019178,2]
[375922739,1753786244566,-460.0,0.00019178,2]
[375922742,1753786244575,-460.0,0.00019178,2]
[375922744,1753786244585,-470.72057866,0.00019178,2]
[375922745,1753786244594,-460.0,0.00019178,2]
[375922747,1753786244603,-366.02769665,0.00019178,2]
[375922749,1753786244613,-233.92515939,0.00019178,2]
[375922751,1753786244624,-1482.43,0.00019178,2]
[375922753,1753786244633,-460.0,0.00019178,2]
[375922755,1753786244642,-460.0,0.00019178,2]
[375922757,1753786244651,-926.26,0.00019178,2]
[375922759,1753786244661,-460.0,0.00019178,2]
[375922761,1753786244670,-612.57,0.00019178,2]
[375922763,1753786244680,-460.0,0.00019178,2]
[375922765,1753786244691,-460.0,0.00019178,2]
[375922767,1753786244701,-327.29115212,0.00019178,2]
[375922770,1753786244711,-460.0,0.00019178,2]
[375922771,1753786244720,-460.0,0.00019178,2]
[375922773,1753786244730,-1508.23,0.00019178,2]
[375922775,1753786244739,-221.50672137,0.00019178,2]
[375922777,1753786244749,-460.0,0.00019178,2]
[375922779,1753786244758,-1388.48,0.00019178,2]
[375922781,1753786244768,-460.0,0.00019178,2]
[375922783,1753786244777,-460.0,0.00019178,2]
[375922785,1753786244787,-460.0,0.00019178,2]
[375922787,1753786244796,-460.0,0.00019178,2]
[375922789,1753786244806,-460.0,0.00019178,2]
[375922791,1753786244816,-460.0,0.00019178,2]
[375922793,1753786244825,-848.07,0.00019178,2]
[375922795,1753786244835,-460.0,0.00019178,2]
[375922797,1753786244845,-1491.79,0.00019178,2]
[375922799,1753786244855,-401.88421159,0.00019178,2]
[375922801,1753786244864,-460.0,0.00019178,2]
[375922803,1753786244873,-460.0,0.00019178,2]
[375922805,1753786244883,-5000.0,0.00019178,2]
[375922807,1753786244893,-5000.0,0.00019178,2]
[375922809,1753786244902,-666.0,0.00019178,2]
[375922811,1753786244914,-727.722607,0.00019178,2]
[375922813,1753786244923,-2347.87260389,0.00019187,2]
[375922815,1753786244933,-500.0,0.00019241,2]
[375922817,1753786244943,-1419.24160765,0.00019242,2]
[375922819,1753786244953,-200.0,0.00019254,15]
[375922821,1753786244962,-200.0,0.00019254,15]
[375922823,1753786244972,-200.0,0.00019254,15]
[375922825,1753786244982,-200.0,0.00019254,15]
[375922827,1753786244992,-615.2821362,0.00019314,2]
[375922829,1753786245001,-100000.0,0.00019329,2]
[375922831,1753786245010,-151.0,0.000194,2]
[375922833,1753786245020,-151.0,0.000194,2]
[375922835,1753786245030,-3349.28469749,0.00019427,2]
[375922837,1753786245039,-615.2821362,0.00019452,2]
[375922839,1753786245049,-460.017518,0.00019452,2]
[375922841,1753786245058,-151.0,0.00019452,2]
[375922843,1753786245067,-460.0,0.00019452,2]
[375922845,1753786245076,-460.0,0.00019452,2]
[375922847,1753786245086,-460.0,0.00019452,2]
[375922849,1753786245095,-460.0,0.00019452,2]
[375922851,1753786245105,-460.0,0.00019452,2]
[375922853,1753786245114,-460.0,0.00019452,2]
[375922855,1753786245124,-460.0,0.00019452,2]
[375922857,1753786245133,-460.0,0.00019452,2]
[375922859,1753786245143,-460.0,0.00019452,2]
[375922861,1753786245152,-460.0,0.00019452,2]
[375922863,1753786245160,-163.50108274,0.00019452,2]
[375922865,1753786245170,-460.0,0.00019452,2]
[375922867,1753786245180,-460.0,0.00019452,2]
[375922869,1753786245189,-460.0,0.00019452,2]
[375922871,1753786245198,-460.0,0.00019452,2]
[375922873,1753786245208,-460.0,0.00019452,2]
[375922875,1753786245218,-460.0,0.00019452,2]
[375922877,1753786245227,-460.0,0.00019452,2]
[375922879,1753786245237,-460.0,0.00019452,2]
[375922881,1753786245246,-460.0,0.00019452,2]
[375922883,1753786245255,-460.0,0.00019452,2]
[375922885,1753786245265,-460.0,0.00019452,2]
[375922887,1753786245274,-460.0,0.00019452,2]
[375922889,1753786245284,-460.0,0.00019452,2]
[375922891,1753786245294,-436.06167608,0.00019452,2]
[375922893,1753786245303,-460.0,0.00019452,2]
[375922896,1753786245313,-460.0,0.00019452,2]
[375922899,1753786245322,-460.0,0.00019452,2]
[375922901,1753786245333,-460.0,0.00019452,2]
[375922903,1753786245343,-460.0,0.00019452,2]
[375922905,1753786245353,-460.0,0.00019452,2]
[375922907,1753786245362,-203.88558554,0.00019452,2]
[375922909,1753786245372,-460.0,0.00019452,2]
[375922911,1753786245381,-460.0,0.00019452,2]
[375922913,1753786245391,-460.0,0.00019452,2]
[375922915,1753786245400,-460.0,0.00019452,2]
[375922917,1753786245409,-460.0,0.00019452,2]
[375922919,1753786245419,-460.0,0.00019452,2]
[375922921,1753786245429,-461.80317309,0.00019452,2]
[375922923,1753786245438,-460.0,0.00019452,2]
[375922925,1753786245447,-460.0,0.00019452,2]
[375922927,1753786245456,-460.0,0.00019452,2]
[375922929,1753786245465,-460.0,0.00019452,2]
[375922931,1753786245477,-460.0,0.00019452,2]
[375922933,1753786245486,-460.0,0.00019452,2]
[375922935,1753786245495,-460.0,0.00019452,2]
[375922937,1753786245505,-460.0,0.00019452,2]
[375922939,1753786245516,-460.0,0.00019452,2]
[375922941,1753786245525,-460.0,0.00019452,2]
[375922943,1753786245535,-460.0,0.00019452,2]
[375922945,1753786245545,-460.0,0.00019452,2]
[375922947,1753786245554,-558.73,0.00019452,2]
[375922949,1753786245563,-460.0,0.00019452,2]
[375922951,1753786245573,-460.0,0.00019452,2]
[375922953,1753786245582,-460.0,0.00019452,2]
[375922955,1753786245591,-460.0,0.00019452,2]
[375922957,1753786245600,-460.0,0.00019452,2]
[375922959,1753786245610,-460.0,0.00019452,2]
[375922961,1753786245619,-424.41792227,0.00019452,2]
[375922963,1753786245628,-289.89368006,0.00019452,2]
[375922965,1753786245637,-460.0,0.00019452,2]
[375922967,1753786245648,-322.13879753,0.00019452,2]
[375922969,1753786245657,-560.56113274,0.00019452,2]
[375922971,1753786245667,-460.0,0.00019452,2]
[375922973,1753786245676,-460.0,0.00019452,2]
[375922975,1753786245685,-460.0,0.00019452,2]
[375922977,1753786245695,-460.0,0.00019452,2]
[375922979,1753786245706,-460.0,0.00019452,2]
[375922980,1753786245715,-641.17,0.00019452,2]
[375922982,1753786245725,-460.0,0.00019452,2]
[375922984,1753786245735,-460.0,0.00019452,2]
[375922986,1753786245744,-460.0,0.00019452,2]
[375922988,1753786245754,-460.0,0.00019452,2]
[375922990,1753786245763,-460.0,0.00019452,2]
[375922992,1753786245773,-460.0,0.00019452,2]
[375922994,1753786245782,-568.16373849,0.00019452,2]
[375922996,1753786245792,-460.0,0.00019452,2]
[375922998,1753786245802,-460.0,0.00019452,2]
[375923000,1753786245811,-460.0,0.00019452,2]
[375923002,1753786245821,-564.54,0.00019452,2]
[375923004,1753786245831,-460.0,0.00019452,2]
[375923006,1753786245840,-460.0,0.00019452,2]
[375923008,1753786245850,-460.0,0.00019452,2]
[375923010,1753786245860,-460.0,0.00019452,2]
[375923012,1753786245869,-460.0,0.00019452,2]
[375923015,1753786245879,-460.0,0.00019452,2]
[375923017,1753786245888,-460.0,0.00019452,2]
[375923019,1753786245898,-460.0,0.00019452,2]
[375923021,1753786245910,-460.0,0.00019452,2]
[375923023,1753786245919,-460.0,0.00019452,2]
[375923025,1753786245928,-460.0,0.00019452,2]
[375923027,1753786245938,-460.0,0.00019452,2]
[375923029,1753786245947,-460.0,0.00019452,2]
[375923031,1753786245957,-460.0,0.00019452,2]
[375923033,1753786245966,-460.0,0.00019452,2]
[375923035,1753786245975,-460.0,0.00019452,2]
[375923037,1753786245985,-460.0,0.00019452,2]
[375923039,1753786245994,-207.83819858,0.00019452,2]
[375923041,1753786246003,-460.0,0.00019452,2]
[375923042,1753786246012,-460.0,0.00019452,2]
[375923044,1753786246021,-3330.66,0.00019452,2]
[375923047,1753786246030,-460.0,0.00019452,2]
[375923048,1753786246040,-460.0,0.00019452,2]
[375923051,1753786246049,-460.0,0.00019452,2]
[375923053,1753786246059,-460.0,0.00019452,2]
[375923054,1753786246068,-460.0,0.00019452,2]
[375923056,1753786246077,-460.0,0.00019452,2]
[375923058,1753786246086,-387.07869557,0.00019452,2]
[375923060,1753786246096,-460.0,0.00019452,2]
[375923062,1753786246106,-889.55,0.00019452,2]
[375923065,1753786246117,-1469.59,0.00019452,2]
[375923067,1753786246127,-460.0,0.00019452,2]
[375923069,1753786246136,-460.0,0.00019452,2]
[375923071,1753786246146,-623.86,0.00019452,2]
[375923073,1753786246155,-631.4,0.00019452,2]
[375923075,1753786246164,-460.0,0.00019452,2]
[375923077,1753786246173,-460.0,0.00019452,2]
[375923079,1753786246182,-460.0,0.00019452,2]
[375923081,1753786246191,-460.0,0.00019452,2]
[375923083,1753786246201,-460.0,0.00019452,2]
[375923085,1753786246210,-460.0,0.00019452,2]
[375923087,1753786246219,-460.0,0.00019452,2]
[375923089,1753786246228,-460.0,0.00019452,2]
[375923091,1753786246237,-460.0,0.00019452,2]
[375923097,1753786246282,-460.0,0.00019452,2]
[375923098,1753786246293,-460.0,0.00019452,2]
[375923100,1753786246302,-441.79556851,0.00019452,2]
[375923102,1753786246312,-460.0,0.00019452,2]
[375923104,1753786246321,-460.0,0.00019452,2]
[375923105,1753786246331,-4205.18,0.00019452,2]
[375923106,1753786246340,-460.0,0.00019452,2]
[375923107,1753786246349,-460.0,0.00019452,2]
[375923108,1753786246360,-460.0,0.00019452,2]
[375923109,1753786246370,-545.41,0.00019452,2]
[375923110,1753786246379,-1655.39,0.00019452,2]
[375923111,1753786246388,-460.0,0.00019452,2]
[375923112,1753786246398,-460.0,0.00019452,2]
[375923113,1753786246407,-460.0,0.00019452,2]
[375923114,1753786246416,-460.0,0.00019452,2]
[375923115,1753786246425,-460.0,0.00019452,2]
[375923116,1753786246434,-295.71078926,0.00019452,2]
[375923117,1753786246443,-460.0,0.00019452,2]
[375923118,1753786246453,-460.0,0.00019452,2]
[375923119,1753786246462,-460.0,0.00019452,2]
[375923120,1753786246472,-460.0,0.00019452,2]
[375923121,1753786246484,-683.88,0.00019452,2]
[375923122,1753786246493,-460.0,0.00019452,2]
[375923123,1753786246504,-460.0,0.00019452,2]
[375923124,1753786246515,-790.94,0.00019452,2]
[375923125,1753786246524,-460.0,0.00019452,2]
[375923126,1753786246533,-460.0,0.00019452,2]
[375923127,1753786246543,-460.0,0.00019452,2]
[375923128,1753786246554,-460.0,0.00019452,2]
[375923129,1753786246564,-460.0,0.00019452,2]
[375923130,1753786246573,-539.65,0.00019452,2]
[375923131,1753786246582,-460.0,0.00019452,2]
[375923132,1753786246591,-916.43,0.00019452,2]
[375923133,1753786246600,-460.0,0.00019452,2]
[375923134,1753786246610,-460.0,0.00019452,2]
[375923135,1753786246620,-460.0,0.00019452,2]
[375923136,1753786246629,-460.0,0.00019452,2]
[375923138,1753786246639,-658.24,0.00019452,2]
[375923140,1753786246652,-460.0,0.00019452,2]
[375923142,1753786246661,-460.0,0.00019452,2]
[375923144,1753786246670,-460.0,0.00019452,2]
[375923146,1753786246679,-772.21,0.00019452,2]
[375923148,1753786246688,-460.0,0.00019452,2]
[375923149,1753786246698,-210.15647416,0.00019452,2]
[375923151,1753786246707,-460.0,0.00019452,2]
[375923153,1753786246716,-460.0,0.00019452,2]
[375923155,1753786246725,-460.0,0.00019452,2]
[375923157,1753786246735,-463.54,0.00019452,2]
[375923159,1753786246744,-460.0,0.00019452,2]
[375923161,1753786246754,-460.0,0.00019452,2]
[375923163,1753786246763,-460.0,0.00019452,2]
[375923165,1753786246773,-460.0,0.00019452,2]
[375923167,1753786246785,-460.0,0.00019452,2]
[375923169,1753786246794,-5310.21,0.00019452,2]
[375923171,1753786246803,-460.0,0.00019452,2]
[375923173,1753786246812,-460.0,0.00019452,2]
[375923175,1753786246821,-460.0,0.00019452,2]
[375923177,1753786246831,-460.0,0.00019452,2]
[375923179,1753786246840,-543.44,0.00019452,2]
[375923181,1753786246850,-460.0,0.00019452,2]
[375923183,1753786246860,-460.0,0.00019452,2]
[375923185,1753786246869,-551.22994518,0.00019452,2]
[375923187,1753786246879,-886.02,0.00019452,2]
[375923189,1753786246888,-460.0,0.00019452,2]
[375923191,1753786246897,-460.0,0.00019452,2]
[375923193,1753786246906,-460.0,0.00019452,2]
[375923195,1753786246916,-460.0,0.00019452,2]
[375923197,1753786246925,-1215.12,0.00019452,2]
[375923199,1753786246934,-460.0,0.00019452,2]
[375923201,1753786246943,-416.04399065,0.00019452,2]
[375923203,1753786246953,-460.0,0.00019452,2]
[375923205,1753786246963,-1847.32,0.00019452,2]
[375923207,1753786246972,-460.0,0.00019452,2]
[375923209,1753786246981,-872.66,0.00019452,2]
[375923211,1753786246991,-460.0,0.00019452,2]
[375923213,1753786246999,-460.0,0.00019452,2]
[375923215,1753786247008,-824.86,0.00019452,2]
[375923217,1753786247017,-460.0,0.00019452,2]
[375923219,1753786247027,-1143.82,0.00019452,2]
[375923221,1753786247036,-460.0,0.00019452,2]
[375923223,1753786247045,-460.0,0.00019452,2]
[375923225,1753786247055,-460.0,0.00019452,2]
[375923226,1753786247065,-460.0,0.00019452,2]
[375923227,1753786247074,-460.0,0.00019452,2]
[375923228,1753786247084,-460.0,0.00019452,2]
[375923229,1753786247093,-489.82,0.00019452,2]
[375923230,1753786247103,-618.05,0.00019452,2]
[375923231,1753786247112,-1322.92,0.00019452,2]
[375923232,1753786247121,-618.05,0.00019452,2]
[375923233,1753786247132,-460.0,0.00019452,2]
[375923234,1753786247143,-460.0,0.00019452,2]
[375923235,1753786247152,-460.0,0.00019452,2]
[375923236,1753786247161,-616.15,0.00019452,2]
[375923237,1753786247170,-695.65,0.00019452,2]
[375923238,1753786247180,-460.0,0.00019452,2]
[375923239,1753786247189,-590.32,0.00019452,2]
[375923240,1753786247200,-460.0,0.00019452,2]
[375923241,1753786247209,-460.0,0.00019452,2]
[375923242,1753786247218,-6923.83,0.00019452,2]
[375923243,1753786247227,-460.0,0.00019452,2]
[375923244,1753786247236,-460.0,0.00019452,2]
[375923245,1753786247245,-460.0,0.00019452,2]
[375923247,1753786247254,-460.0,0.00019452,2]
[375923249,1753786247263,-460.0,0.00019452,2]
[375923251,1753786247272,-460.0,0.00019452,2]
[375923253,1753786247281,-460.0,0.00019452,2]
[375923255,1753786247290,-460.0,0.00019452,2]
[375923257,1753786247299,-229.52,0.00019452,2]
[375923259,1753786247309,-460.0,0.00019452,2]
[375923261,1753786247318,-4807.24,0.00019452,2]
[375923263,1753786247327,-460.0,0.00019452,2]
[375923265,1753786247337,-1054.57,0.00019452,2]
[375923267,1753786247346,-460.0,0.00019452,2]
[375923269,1753786247356,-460.0,0.00019452,2]
[375923271,1753786247365,-1367.47,0.00019452,2]
[375923273,1753786247375,-460.0,0.00019452,2]
[375923275,1753786247384,-460.0,0.00019452,2]
[375923277,1753786247393,-460.0,0.00019452,2]
[375923279,1753786247402,-460.0,0.00019452,2]
[375923281,1753786247412,-460.0,0.00019452,2]
[375923283,1753786247421,-1127.35,0.00019452,2]
[375923285,1753786247430,-460.0,0.00019452,2]
[375923287,1753786247440,-463.49270176,0.00019452,2]
[375923289,1753786247449,-967.65,0.00019452,2]
[375923291,1753786247459,-1087.46,0.00019452,2]
[375923293,1753786247468,-1757.04,0.00019452,2]
[375923294,1753786247480,-882.88,0.00019452,2]
[375923296,1753786247489,-460.0,0.00019452,2]
[375923299,1753786247499,-1097.94,0.00019452,2]
[375923301,1753786247509,-472.42339338,0.00019452,2]
[375923303,1753786247520,-460.0,0.00019452,2]
[375923305,1753786247529,-460.0,0.00019452,2]
[375923307,1753786247539,-460.0,0.00019452,2]
[375923309,1753786247551,-460.0,0.00019452,2]
[375923311,1753786247563,-460.0,0.00019452,2]
[375923313,1753786247573,-460.0,0.00019452,2]
[375923315,1753786247582,-4403.09,0.00019452,2]
[375923317,1753786247591,-460.0,0.00019452,2]
[375923319,1753786247601,-459.78723784,0.00019452,2]
[375923321,1753786247611,-460.0,0.00019452,2]
[375923323,1753786247621,-460.0,0.00019452,2]
[375923325,1753786247631,-460.0,0.00019452,2]
[375923327,1753786247640,-1259.84,0.00019452,2]
[375923329,1753786247650,-460.0,0.00019452,2]
[375923331,1753786247659,-460.0,0.00019452,2]
[375923333,1753786247669,-3860.25,0.00019452,2]
[375923335,1753786247679,-3629.56,0.00019452,2]
[375923337,1753786247688,-460.0,0.00019452,2]
[375923339,1753786247697,-460.0,0.00019452,2]
[375923341,1753786247707,-2172.77,0.00019452,2]
[375923343,1753786247716,-5778.25,0.00019452,2]
[375923345,1753786247726,-460.0,0.00019452,2]
[375923347,1753786247736,-460.0,0.00019452,2]
[375923349,1753786247745,-460.0,0.00019452,2]
[375923351,1753786247755,-13244.83,0.00019452,2]
[375923353,1753786247765,-4434.88,0.00019452,2]
[375923355,1753786247775,-460.0,0.00019452,2]
[375923357,1753786247785,-460.0,0.00019452,2]
[375923359,1753786247794,-460.0,0.00019452,2]
[375923361,1753786247804,-468.64712362,0.00019452,2]
[375923363,1753786247814,-460.0,0.00019452,2]
[375923365,1753786247823,-460.0,0.00019452,2]
[375923367,1753786247833,-460.0,0.00019452,2]
[375923369,1753786247842,-460.0,0.00019452,2]
[375923371,1753786247853,-460.0,0.00019452,2]
[375923373,1753786247862,-460.0,0.00019452,2]
[375923375,1753786247872,-460.0,0.00019452,2]
[375923378,1753786247882,-460.0,0.00019452,2]
[375923379,1753786247891,-460.0,0.00019452,2]
[375923381,1753786247900,-764.02,0.00019452,2]
[375923383,1753786247911,-460.0,0.00019452,2]
[375923384,1753786247921,-460.0,0.00019452,2]
[375923386,1753786247931,-328.4636397,0.00019452,2]
[375923388,1753786247949,-460.0,0.00019452,2]
[375923390,1753786247964,-519.68,0.00019452,2]
[375923392,1753786247974,-460.0,0.00019452,2]
[375923394,1753786247984,-579.38,0.00019452,2]
[375923396,1753786247993,-1554.77,0.00019452,2]
[375923398,1753786248007,-460.0,0.00019452,2]
[375923400,1753786248017,-460.0,0.00019452,2]
[375923402,1753786248026,-460.0,0.00019452,2]
[375923404,1753786248036,-460.0,0.00019452,2]
[375923406,1753786248046,-532.21,0.00019452,2]
[375923408,1753786248056,-460.0,0.00019452,2]
[375923410,1753786248066,-1516.66,0.00019452,2]
[375923412,1753786248076,-460.0,0.00019452,2]
[375923414,1753786248085,-460.0,0.00019452,2]
[375923416,1753786248095,-460.0,0.00019452,2]
[375923418,1753786248105,-582.69,0.00019452,2]
[375923420,1753786248114,-460.0,0.00019452,2]
[375923422,1753786248124,-460.0,0.00019452,2]
[375923424,1753786248134,-460.0,0.00019452,2]
[375923426,1753786248143,-447.99576408,0.00019452,2]
[375923428,1753786248152,-4089.71,0.00019452,2]
[375923430,1753786248162,-252.4977696,0.00019452,2]
[375923432,1753786248172,-460.0,0.00019452,2]
[375923434,1753786248182,-1608.13,0.00019452,2]
[375923436,1753786248192,-460.0,0.00019452,2]
[375923438,1753786248202,-460.0,0.00019452,2]
[375923440,1753786248211,-460.0,0.00019452,2]
[375923442,1753786248220,-466.8775047,0.00019452,2]
[375923444,1753786248231,-2885.28,0.00019452,2]
[375923446,1753786248240,-460.0,0.00019452,2]
[375923448,1753786248250,-1019.55,0.00019452,2]
[375923450,1753786248259,-460.0,0.00019452,2]
[375923452,1753786248269,-460.0,0.00019452,2]
[375923454,1753786248279,-460.0,0.00019452,2]
[375923456,1753786248289,-270.1121062,0.00019452,2]
[375923458,1753786248299,-460.0,0.00019452,2]
[375923460,1753786248308,-460.0,0.00019452,2]
[375923462,1753786248321,-460.0,0.00019452,2]
[375923464,1753786248341,-460.0,0.00019452,2]
[375923466,1753786248351,-1459.12,0.00019452,2]
[375923468,1753786248362,-460.0,0.00019452,2]
[375923470,1753786248372,-4196.7,0.00019452,2]
[375923471,1753786248381,-1265.05,0.00019452,2]
[375923473,1753786248391,-794.22,0.00019452,2]
[375923475,1753786248400,-11712.56,0.00019452,2]
[375923477,1753786248417,-460.0,0.00019452,2]
[375923479,1753786248431,-460.0,0.00019452,2]
[375923481,1753786248441,-460.0,0.00019452,2]
[375923483,1753786248451,-487.56,0.00019452,2]
[375923485,1753786248460,-460.0,0.00019452,2]
[375923487,1753786248471,-460.0,0.00019452,2]
[375923489,1753786248484,-784.83,0.00019452,2]
[375923491,1753786248494,-725.41,0.00019452,2]
[375923493,1753786248505,-460.0,0.00019452,2]
[375923495,1753786248515,-460.0,0.00019452,2]
[375923497,1753786248526,-460.0,0.00019452,2]
[375923499,1753786248537,-464.29136141,0.00019452,2]
[375923501,1753786248547,-460.0,0.00019452,2]
[375923503,1753786248558,-1482.43,0.00019452,2]
[375923505,1753786248568,-460.0,0.00019452,2]
[375923507,1753786248578,-460.0,0.00019452,2]
[375923509,1753786248588,-926.26,0.00019452,2]
[375923511,1753786248597,-460.0,0.00019452,2]
[375923513,1753786248607,-612.57,0.00019452,2]
[375923515,1753786248617,-460.0,0.00019452,2]
[375923517,1753786248627,-460.0,0.00019452,2]
[375923519,1753786248637,-460.0,0.00019452,2]
[375923521,1753786248647,-460.0,0.00019452,2]
[375923523,1753786248657,-1508.23,0.00019452,2]
[375923525,1753786248667,-460.0,0.00019452,2]
[375923527,1753786248678,-1388.48,0.00019452,2]
[375923529,1753786248687,-460.0,0.00019452,2]
[375923531,1753786248698,-460.0,0.00019452,2]
[375923533,1753786248708,-460.0,0.00019452,2]
[375923535,1753786248719,-463.08613846,0.00019452,2]
[375923537,1753786248729,-460.0,0.00019452,2]
[375923539,1753786248739,-460.0,0.00019452,2]
[375923541,1753786248749,-848.07,0.00019452,2]
[375923543,1753786248760,-460.0,0.00019452,2]
[375923545,1753786248770,-1491.79,0.00019452,2]
[375923547,1753786248782,-460.0,0.00019452,2]